bitfinex/quotes_SOLUSD_20240613
["timestamp","ask_amount","ask_price","bid_price","bid_amount"]
[1718273971131,0.68,150.52,150.44,45.0]
[1718273972519,0.68,150.52,150.45,15.3426]
[1718273972717,0.68,150.52,150.46,45.0]
[1718273973112,7.739897,150.53,150.46,45.0]
[1718273973312,0.8079495,150.53,150.46,45.0]
[1718273982666,0.8079495,150.53,150.47,20.0]
[1718273982884,0.8079495,150.53,150.48,45.0]
[1718273993152,0.8079495,150.53,150.49,16.1955]
[1718273993453,0.8079495,150.53,150.5,65.0]
[1718273994374,0.8079495,150.53,150.51,6.612]
[1718273994673,254.3,150.58,150.51,6.612]
[1718273994674,254.3,150.58,150.52,65.0]
[1718273999294,0.17,150.62,150.52,65.0]
[1718273999583,0.17,150.62,150.53,15.0882]
[1718273999584,0.68,150.62,150.53,15.0882]
[1718273999785,6.91723144,150.62,150.54,45.0]
[1718273999994,295.2637,150.67,150.54,45.0]
[1718274000367,6.91663977,150.65,150.54,45.0]
[1718274001900,6.91663977,150.65,150.55,20.0]
[1718274002084,0.17,150.64,150.55,20.0]
[1718274002597,0.17,150.63,150.54,20.0]
[1718274002794,0.51,150.63,150.54,20.0]
[1718274003009,0.17,150.62,150.55,45.0]
[1718274003183,0.17,150.62,150.54,20.0]
[1718274003684,0.17,150.62,150.53,15.0882]
[1718274005371,0.17,150.62,150.54,45.0]
[1718274006978,8.47,150.61,150.55,8.47]
[1718274007197,0.17,150.62,150.56,53.47]
[1718274007406,8.47,150.61,150.56,8.47]
[1718274007615,0.17,150.62,150.57,45.0]
[1718274007897,8.64,150.62,150.57,45.0]
[1718274008399,6.91663977,150.65,150.57,45.0]
[1718274008590,6.91663977,150.65,150.58,8.47]
[1718274008900,8.47,150.63,150.59,45.0]
[1718274009274,8.47,150.61,150.59,45.0]
[1718274010406,8.47,150.6,150.54,8.47]
[1718274010700,8.47,150.59,150.54,8.47]
[1718274010871,8.47,150.58,150.53,15.0882]
[1718274011073,8.47,150.58,150.53,23.5582]
[1718274011307,8.47,150.57,150.53,15.0882]
[1718274011504,8.47,150.58,150.53,15.0882]
[1718274011682,8.47,150.57,150.53,15.0882]
[1718274012186,8.47,150.58,150.53,23.5582]
[1718274012909,6.8248,150.62,150.53,15.0882]
[1718274013085,0.17,150.6,150.54,45.0]
[1718274013397,0.51,150.6,150.54,45.0]
[1718274013696,0.17,150.59,150.54,45.0]
[1718274013899,0.51,150.59,150.54,45.0]
[1718274014495,0.17,150.6,150.54,45.0]
[1718274014698,0.68,150.6,150.54,45.0]
[1718274015087,0.51,150.6,150.54,45.0]
[1718274015294,0.17,150.6,150.54,45.0]
[1718274015680,0.17,150.62,150.54,45.0]
[1718274015878,0.68,150.62,150.54,45.0]
[1718274016091,6.92263859,150.63,150.54,45.0]
[1718274016992,6.92263859,150.63,150.55,15.0744]
[1718274017197,6.92263859,150.63,150.56,45.0]
[1718274017906,6.92263859,150.63,150.55,15.0744]
[1718274018376,0.68,150.62,150.55,15.0744]
[1718274019281,0.68,150.62,150.56,45.0]
[1718274019977,0.68,150.62,150.55,15.0744]
[1718274020509,0.68,150.62,150.51,22.91]
[1718274022010,0.68,150.62,150.52,20.0]
[1718274022297,0.17,150.6,150.52,45.0]
[1718274022477,0.68,150.6,150.52,45.0]
[1718274025608,0.51,150.6,150.52,45.0]
[1718274025796,0.17,150.63,150.52,45.0]
[1718274025989,7.59125701,150.63,150.53,20.0]
[1718274026189,7.59125701,150.63,150.54,45.0]
[1718274029295,7.59125701,150.63,150.55,20.0]
[1718274029617,48.3132,150.69,150.57,15.1381]
[1718274029791,48.3132,150.69,150.58,45.0]
[1718274029990,7.71852823,150.68,150.58,45.0]
[1718274030188,7.71852823,150.68,150.59,20.0]
[1718274030499,7.71852823,150.68,150.6,45.0]
[1718274032794,0.8079495,150.68,150.6,45.0]
[1718274035845,0.17,150.67,150.6,45.0]
[1718274036059,0.8079495,150.68,150.6,45.0]
[1718274038950,8.46,150.67,150.62,8.46]
[1718274039164,8.46,150.67,150.63,45.0]
[1718274039359,0.8079495,150.68,150.63,45.0]
[1718274039661,8.46,150.67,150.63,45.0]
[1718274039841,8.46,150.67,150.62,45.0]
[1718274041047,0.8079495,150.68,150.62,45.0]
[1718274041245,8.46,150.66,150.62,45.0]
[1718274041567,8.46,150.67,150.62,45.0]
[1718274047352,0.8079495,150.68,150.62,45.0]
[1718274047667,8.46,150.67,150.62,53.46]
[1718274049362,0.8079495,150.68,150.62,53.46]
[1718274049543,8.46,150.67,150.62,53.46]
[1718274050669,0.8079495,150.68,150.62,53.46]
[1718274050871,9.2679495,150.68,150.62,53.46]
[1718274051166,9.2679495,150.68,150.63,8.46]
[1718274051347,0.8079495,150.68,150.64,45.0]
[1718274051549,9.2679495,150.68,150.64,45.0]
[1718274054255,9.2679495,150.68,150.63,45.0]
[1718274055476,0.8079495,150.68,150.66,16.0875]
[1718274055767,0.8079495,150.68,150.67,53.46]
[1718274056178,0.8079495,150.68,150.67,73.46]
[1718274056673,0.8079495,150.68,150.67,73.63]
[1718274058549,0.8079495,150.68,150.67,73.46]
[1718274059065,0.8079495,150.68,150.67,53.46]
[1718274061247,0.8079495,150.83,150.67,53.46]
[1718274061248,15.3427,150.82,150.68,0.17]
[1718274061467,8.46,150.79,150.68,40.63]
[1718274061666,8.46,150.78,150.69,45.0]
[1718274061867,8.46,150.77,150.72,8.46]
[1718274062079,8.46,150.77,150.73,45.0]
[1718274062269,8.46,150.78,150.73,45.0]
[1718274062883,4.92695569,150.81,150.73,53.46]
[1718274063069,8.46,150.78,150.73,53.46]
[1718274063265,15.3427,150.82,150.73,53.46]
[1718274063575,8.46,150.78,150.73,53.46]
[1718274063760,8.46,150.78,150.73,45.0]
[1718274063961,15.3427,150.82,150.73,53.46]
[1718274064161,8.46,150.78,150.73,53.46]
[1718274065065,8.46,150.78,150.73,45.0]
[1718274065262,8.46,150.75,150.68,35.1999]
[1718274065576,8.46,150.75,150.69,8.46]
[1718274065769,8.46,150.76,150.71,8.46]
[1718274066858,8.46,150.76,150.72,45.0]
[1718274068859,0.51,150.79,150.72,45.0]
[1718274069059,8.46,150.76,150.72,45.0]
[1718274069469,8.46,150.77,150.72,53.46]
[1718274069670,8.46,150.78,150.72,53.46]
[1718274070058,386.0,150.81,150.73,8.46]
[1718274070364,8.46,150.79,150.74,53.46]
[1718274070561,8.46,150.78,150.75,45.0]
[1718274070981,8.46,150.78,150.74,45.0]
[1718274071375,8.46,150.77,150.74,45.0]
[1718274071588,8.46,150.77,150.73,45.0]
[1718274073681,8.46,150.78,150.73,45.0]
[1718274074187,0.17,150.81,150.73,45.0]
[1718274074389,8.46,150.78,150.73,45.0]
[1718274074761,0.68,150.81,150.68,35.1999]
[1718274074971,8.46,150.75,150.69,8.46]
[1718274075385,8.46,150.75,150.7,8.46]
[1718274076088,8.46,150.77,150.71,53.46]
[1718274076898,8.46,150.77,150.72,8.46]
[1718274077191,8.46,150.78,150.73,45.0]
[1718274077691,8.46,150.78,150.74,0.84867411]
[1718274077867,22.269811,150.82,150.74,9.30867411]
[1718274078073,8.46,150.79,150.75,45.0]
[1718274078273,8.46,150.79,150.76,0.84856152]
[1718274078473,8.46,150.79,150.75,45.0]
[1718274080101,8.46,150.77,150.74,45.0]
[1718274080296,8.46,150.77,150.73,45.0]
[1718274080794,0.17,150.81,150.68,15.1999]
[1718274080795,8.46,150.8,150.68,15.1999]
[1718274081001,8.46,150.74,150.68,15.1999]
[1718274081205,8.46,150.74,150.68,23.6599]
[1718274081499,8.46,150.73,150.68,23.6599]
[1718274081681,8.46,150.73,150.68,15.1999]
[1718274082200,8.46,150.72,150.68,15.1999]
[1718274082790,8.46,150.73,150.68,15.1999]
[1718274082994,8.46,150.73,150.69,45.0]
[1718274084899,0.17,150.77,150.69,45.0]
[1718274085104,8.46,150.74,150.69,53.46]
[1718274086084,8.46,150.75,150.69,53.46]
[1718274086500,0.17,150.77,150.71,8.46]
[1718274086685,0.17,150.77,150.72,45.0]
[1718274086686,8.46,150.77,150.72,45.0]
[1718274088105,8.46,150.76,150.72,45.0]
[1718274088803,0.34,150.79,150.72,45.0]
[1718274088979,8.46,150.74,150.71,45.0]
[1718274089189,8.46,150.73,150.68,23.6599]
[1718274090412,8.46,150.75,150.7,8.46]
[1718274090578,8.46,150.75,150.71,45.0]
[1718274090781,8.46,150.75,150.7,45.0]
[1718274091001,8.46,150.74,150.7,45.0]
[1718274091386,0.17,150.77,150.7,45.0]
[1718274091614,8.46,150.75,150.7,45.0]
[1718274093413,0.17,150.77,150.7,53.46]
[1718274093610,8.46,150.75,150.7,53.46]
[1718274095606,0.8079495,150.83,150.73,8.46]
[1718274095804,8.46,150.79,150.74,53.46]
[1718274096112,8.46,150.79,150.75,45.0]
[1718274096805,21.9403,150.82,150.75,45.0]
[1718274097117,8.46,150.79,150.75,45.0]
[1718274098518,8.46,150.78,150.75,45.0]
[1718274098720,8.46,150.77,150.75,45.0]
[1718274099211,8.46,150.78,150.75,45.0]
[1718274100202,8.46,150.78,150.74,45.0]
[1718274101346,8.46,150.79,150.74,53.46]
[1718274102328,21.9403,150.82,150.74,53.46]
[1718274102505,8.46,150.8,150.74,53.46]
[1718274103029,21.9403,150.82,150.75,8.46]
[1718274103208,8.46,150.8,150.76,45.0]
[1718274103601,8.46,150.8,150.75,45.0]
[1718274104535,21.9403,150.82,150.75,45.0]
[1718274104834,8.46,150.8,150.75,45.0]
[1718274106225,8.46,150.79,150.75,45.0]
[1718274107032,8.46,150.78,150.75,45.0]
[1718274107334,0.17,150.81,150.75,45.0]
[1718274107628,8.46,150.78,150.74,15.7259]
[1718274108129,0.68,150.81,150.74,15.7259]
[1718274108130,8.46,150.79,150.74,15.7259]
[1718274108724,8.46,150.79,150.75,45.0]
[1718274110026,8.46,150.78,150.75,45.0]
[1718274113021,8.46,150.77,150.75,45.0]
[1718274113427,8.46,150.76,150.75,45.0]
[1718274116538,8.46,150.76,150.7,15.3689]
[1718274116716,8.46,150.75,150.71,45.0]
[1718274117237,8.46,150.74,150.71,45.0]
[1718274117421,8.46,150.75,150.71,45.0]
[1718274118722,8.46,150.74,150.71,45.0]
[1718274122449,0.17,150.79,150.71,45.0]
[1718274122744,8.46,150.74,150.71,45.0]
[1718274122931,0.68,150.79,150.71,45.0]
[1718274123461,8.46,150.76,150.71,45.0]
[1718274123926,0.68,150.79,150.71,45.0]
[1718274124120,8.46,150.76,150.71,45.0]
[1718274125765,0.68,150.79,150.71,45.0]
[1718274125933,0.68,150.79,150.71,53.46]
[1718274126132,8.46,150.77,150.72,8.46]
[1718274126432,8.46,150.77,150.73,45.0]
[1718274126650,0.68,150.79,150.73,45.0]
[1718274126941,8.46,150.77,150.73,45.0]
[1718274128628,28.8585781,150.82,150.73,45.0]
[1718274128832,8.46,150.78,150.73,45.0]
[1718274129137,0.8079495,150.83,150.73,59.4954]
[1718274129350,8.46,150.79,150.73,59.4954]
[1718274132349,8.46,150.76,150.73,51.0354]
[1718274136364,8.46,150.78,150.73,51.0354]
[1718274136842,8.46,150.77,150.73,51.0354]
[1718274139168,8.46,150.78,150.73,51.0354]
[1718274141161,0.17,150.82,150.7,15.3689]
[1718274141364,8.46,150.74,150.7,15.3689]
[1718274142238,8.46,150.75,150.7,15.3689]
[1718274142438,8.46,150.75,150.71,45.0]
[1718274142749,0.17,150.79,150.71,45.0]
[1718274142951,8.46,150.76,150.71,45.0]
[1718274143355,8.46,150.77,150.72,8.46]
[1718274143563,8.46,150.77,150.73,45.0]
[1718274143868,8.46,150.78,150.73,45.0]
[1718274144168,8.46,150.78,150.73,53.46]
[1718274144671,6.1696,150.81,150.73,45.0]
[1718274144672,8.46,150.77,150.73,45.0]
[1718274148452,8.46,150.76,150.72,45.0]
[1718274150471,8.46,150.76,150.71,53.46]
[1718274151973,0.17,150.82,150.71,53.46]
[1718274152184,8.46,150.77,150.71,53.46]
[1718274154259,8.46,150.75,150.7,15.3689]
[1718274154583,8.46,150.74,150.7,15.3689]
[1718274155455,8.46,150.74,150.71,45.0]
[1718274157174,8.46,150.75,150.71,45.0]
[1718274157472,0.17,150.78,150.71,45.0]
[1718274157683,8.46,150.76,150.71,53.46]
[1718274158160,8.46,150.76,150.71,45.0]
[1718274160168,16.8940495,150.83,150.75,8.46]
[1718274160384,16.8940495,150.83,150.76,53.46]
[1718274160859,8.46,150.81,150.76,53.46]
[1718274163766,16.8940495,150.83,150.76,45.0]
[1718274163767,8.46,150.8,150.76,45.0]
[1718274164169,8.46,150.78,150.7,15.3689]
[1718274164373,0.51,150.81,150.72,8.46]
[1718274164575,8.46,150.78,150.72,8.46]
[1718274165580,8.46,150.78,150.73,45.0]
[1718274170488,8.46,150.77,150.73,45.0]
[1718274170974,8.46,150.76,150.73,45.0]
[1718274171177,8.46,150.76,150.72,45.0]
[1718274171482,8.46,150.77,150.72,53.46]
[1718274176195,8.46,150.77,150.72,45.0]
[1718274176492,8.46,150.77,150.7,15.3689]
[1718274176493,8.46,150.77,150.71,53.46]
[1718274176794,8.46,150.77,150.72,20.0]
[1718274176996,8.46,150.77,150.73,45.0]
[1718274178869,0.17,150.8,150.7,15.3689]
[1718274179190,8.46,150.74,150.7,15.3689]
[1718274180198,8.46,150.75,150.7,15.3689]
[1718274180368,8.46,150.75,150.71,45.0]
[1718274183190,8.46,150.72,150.66,24.9624]
[1718274183492,8.46,150.72,150.67,65.0]
[1718274184001,8.46,150.72,150.67,73.46]
[1718274184578,0.17,150.76,150.67,73.46]
[1718274184774,8.46,150.72,150.67,73.46]
[1718274185471,8.46,150.71,150.66,16.5024]
[1718274185782,8.46,150.7,150.66,16.5024]
[1718274186175,8.46,150.71,150.66,24.9624]
[1718274186589,8.46,150.72,150.67,8.46]
[1718274186800,8.46,150.72,150.68,45.0]
[1718274187480,8.46,150.73,150.68,45.0]
[1718274188497,0.34,150.75,150.68,53.46]
[1718274188800,8.46,150.74,150.69,8.46]
[1718274188973,8.46,150.74,150.7,45.0]
[1718274190773,0.17,150.76,150.7,45.0]
[1718274190971,8.46,150.74,150.7,45.0]
[1718274191194,6.92790622,150.79,150.7,45.0]
[1718274191388,8.46,150.78,150.72,8.46]
[1718274191578,8.46,150.78,150.73,45.0]
[1718274193395,23.59046149,150.82,150.73,45.0]
[1718274193601,8.46,150.78,150.73,53.46]
[1718274194102,6.92696149,150.82,150.74,8.46]
[1718274194286,8.46,150.79,150.75,45.0]
[1718274194708,8.46,150.8,150.75,45.0]
[1718274196403,8.46,150.8,150.75,53.46]
[1718274196903,8.46,150.79,150.75,45.0]
[1718274201691,0.17,150.82,150.75,45.0]
[1718274201893,8.46,150.79,150.75,45.0]
[1718274204410,8.46,150.78,150.75,45.0]
[1718274205888,8.46,150.78,150.74,45.0]
[1718274207095,8.46,150.75,150.71,16.5744]
[1718274208386,8.46,150.75,150.72,45.0]
[1718274208607,8.46,150.76,150.72,45.0]
[1718274212200,0.17,150.79,150.72,45.0]
[1718274212521,8.46,150.76,150.72,45.0]
[1718274215120,8.46,150.77,150.72,53.46]
[1718274217320,0.6115816,150.8,150.72,53.46]
[1718274217531,8.46,150.78,150.73,8.46]
[1718274217819,8.46,150.78,150.74,45.0]
[1718274219399,8.46,150.77,150.74,45.0]
[1718274219595,8.46,150.77,150.73,45.0]
[1718274220708,8.46,150.77,150.73,53.46]
[1718274222007,8.46,150.77,150.73,45.0]
[1718274222221,8.46,150.77,150.72,45.0]
[1718274222425,0.17,150.79,150.72,45.0]
[1718274222718,8.46,150.77,150.72,45.0]
[1718274223529,8.46,150.77,150.72,53.46]
[1718274226918,8.46,150.78,150.72,53.46]
[1718274228527,8.46,150.78,150.73,8.46]
[1718274228734,0.6115816,150.8,150.74,45.0]
[1718274229111,8.46,150.79,150.74,45.0]
[1718274229442,0.6115816,150.8,150.74,45.0]
[1718274229613,8.46,150.79,150.74,45.0]
[1718274230830,0.6115816,150.8,150.74,45.0]
[1718274231124,8.46,150.78,150.74,45.0]
[1718274235738,8.46,150.78,150.73,45.0]
[1718274236634,0.6115816,150.8,150.73,45.0]
[1718274236828,8.46,150.79,150.73,53.46]
[1718274238049,0.6115816,150.8,150.74,8.46]
[1718274238355,0.6115816,150.8,150.75,53.46]
[1718274238356,9.0715816,150.8,150.75,53.46]
[1718274238546,9.0715816,150.8,150.76,45.0]
[1718274239139,0.6115816,150.8,150.76,53.46]
[1718274240731,9.0715816,150.8,150.76,45.0]
[1718274242254,9.0715816,150.8,150.75,45.0]
[1718274248687,8.46,150.77,150.75,45.0]
[1718274248974,8.46,150.77,150.72,8.46]
[1718274249270,8.46,150.77,150.73,45.0]
[1718274250040,8.46,150.76,150.71,16.5744]
[1718274250275,8.46,150.76,150.71,25.0344]
[1718274250440,8.46,150.76,150.71,16.5744]
[1718274250646,8.46,150.75,150.71,16.5744]
[1718274251071,8.46,150.76,150.71,25.0344]
[1718274251668,8.46,150.76,150.72,45.0]
[1718274272486,0.17,150.79,150.72,45.0]
[1718274272659,8.46,150.76,150.72,45.0]
[1718274273062,0.6115816,150.8,150.72,53.46]
[1718274273371,8.46,150.78,150.72,53.46]
[1718274274271,8.46,150.78,150.73,8.46]
[1718274274473,8.46,150.78,150.74,45.0]
[1718274277077,8.46,150.79,150.74,45.0]
[1718274278365,0.6115816,150.8,150.74,45.0]
[1718274278675,0.6115816,150.8,150.76,8.46]
[1718274278866,0.6115816,150.8,150.77,45.0]
[1718274279069,9.0715816,150.8,150.77,45.0]
[1718274279291,9.0715816,150.8,150.76,45.0]
[1718274280694,8.46,150.79,150.76,45.0]
[1718274280982,8.46,150.79,150.75,45.0]
[1718274283864,8.46,150.78,150.75,45.0]
[1718274285493,0.6115816,150.8,150.75,45.0]
[1718274285794,8.46,150.78,150.74,45.0]
[1718274296791,0.6115816,150.8,150.74,45.0]
[1718274296992,8.46,150.78,150.74,45.0]
[1718274301107,8.46,150.77,150.74,45.0]
[1718274301692,8.46,150.77,150.73,45.0]
[1718274302231,8.46,150.78,150.73,45.0]
[1718274305387,8.46,150.78,150.73,53.46]
[1718274310709,8.46,150.78,150.73,45.0]
[1718274310909,8.46,150.78,150.72,45.0]
[1718274311118,8.46,150.78,150.72,53.46]
[1718274312909,0.17,150.79,150.71,16.5744]
[1718274313218,8.46,150.73,150.67,16.2464]
[1718274313394,0.17,150.77,150.67,16.2464]
[1718274313395,8.46,150.74,150.68,8.46]
[1718274313791,8.46,150.74,150.69,8.46]
[1718274314115,8.46,150.75,150.7,8.46]
[1718274314515,8.46,150.75,150.71,45.0]
[1718274314692,6.6228,150.78,150.71,45.0]
[1718274315024,8.46,150.75,150.71,45.0]
[1718274316086,0.51,150.79,150.71,53.46]
[1718274316290,8.46,150.77,150.72,8.46]
[1718274316518,17.1762816,150.8,150.73,45.0]
[1718274316700,8.46,150.78,150.73,53.46]
[1718274316890,0.6115816,150.8,150.74,8.46]
[1718274317091,8.46,150.79,150.75,45.0]
[1718274318298,0.6115816,150.8,150.75,45.0]
[1718274318499,8.46,150.79,150.75,45.0]
[1718274318904,8.46,150.79,150.74,45.0]
[1718274319297,8.46,150.79,150.73,53.46]
[1718274319499,8.46,150.78,150.73,53.46]
[1718274320921,0.6115816,150.8,150.73,53.46]
[1718274321214,8.46,150.79,150.74,8.46]
[1718274321411,8.46,150.79,150.75,45.0]
[1718274323023,0.6115816,150.8,150.75,45.0]
[1718274323202,0.6115816,150.8,150.76,8.46]
[1718274323396,0.6115816,150.8,150.77,53.46]
[1718274323597,0.6115816,150.8,150.78,45.0]
[1718274325722,0.6115816,150.8,150.78,53.46]
[1718274325898,0.6115816,150.8,150.79,8.46]
[1718274326104,0.6115816,150.8,150.79,53.46]
[1718274326796,0.6115816,150.8,150.79,45.0]
[1718274327001,0.6115816,150.8,150.79,53.46]
[1718274329716,0.6115816,150.8,150.79,45.0]
[1718274329905,0.6115816,150.8,150.79,8.46]
[1718274330219,0.6115816,150.8,150.79,53.46]
[1718274333520,0.6115816,150.8,150.79,45.0]
[1718274333704,0.6115816,150.8,150.78,53.46]
[1718274336105,0.6115816,150.8,150.73,16.233]
[1718274336311,9.0715816,150.8,150.73,16.233]
[1718274336513,9.0715816,150.8,150.75,8.46]
[1718274336810,0.6115816,150.8,150.75,8.46]
[1718274337502,0.6115816,150.8,150.76,53.46]
[1718274338011,0.6115816,150.8,150.77,8.46]
[1718274338226,0.6115816,150.8,150.78,45.0]
[1718274339129,0.6115816,150.8,150.78,53.46]
[1718274343522,0.6115816,150.8,150.78,45.0]
[1718274345230,0.6115816,150.8,150.78,53.46]
[1718274345428,0.6115816,150.8,150.79,8.46]
[1718274345611,0.6115816,150.8,150.79,73.46]
[1718274350742,0.6115816,150.8,150.79,73.63]
[1718274351939,0.6115816,150.8,150.79,73.8]
[1718274352344,0.6115816,150.8,150.79,74.14]
[1718274356521,0.6115816,150.8,150.79,73.97]
[1718274356733,0.6115816,150.8,150.79,73.8]
[1718274356942,0.6115816,150.8,150.79,74.14]
[1718274359248,0.6115816,150.8,150.79,73.8]
[1718274359425,0.6115816,150.8,150.79,73.63]
[1718274360032,0.6115816,150.8,150.75,15.3496]
[1718274360237,0.6115816,150.8,150.78,8.46]
[1718274362136,0.6115816,150.8,150.79,45.0]
[1718274366448,0.6115816,150.8,150.78,45.0]
[1718274369646,8.46,150.79,150.72,0.12174763]
[1718274369849,8.46,150.78,150.72,8.58174763]
[1718274370235,8.46,150.78,150.72,0.12174763]
[1718274370443,8.46,150.77,150.72,0.12174763]
[1718274370775,8.46,150.77,150.72,8.58174763]
[1718274372660,8.46,150.76,150.67,15.9071]
[1718274373059,8.46,150.76,150.7,8.46]
[1718274374166,8.46,150.76,150.71,45.0]
[1718274374750,8.46,150.76,150.71,53.46]
[1718274375252,8.46,150.76,150.71,45.0]
[1718274375466,8.46,150.76,150.71,53.46]
[1718274377057,8.46,150.75,150.71,45.0]
[1718274377871,8.46,150.76,150.71,53.46]
[1718274378571,8.46,150.75,150.71,45.0]
[1718274380871,8.46,150.76,150.71,45.0]
[1718274381075,8.46,150.76,150.71,53.46]
[1718274381382,8.46,150.77,150.71,53.46]
[1718274382055,15.9098,150.78,150.71,53.46]
[1718274382369,8.46,150.76,150.71,53.46]
[1718274383479,8.46,150.76,150.71,45.0]
[1718274383654,8.46,150.76,150.71,53.46]
[1718274384068,15.9098,150.78,150.71,45.0]
[1718274384255,8.46,150.75,150.71,45.0]
[1718274384672,8.46,150.74,150.71,45.0]
[1718274384860,8.46,150.74,150.7,45.0]
[1718274385062,15.9098,150.78,150.7,53.46]
[1718274385593,8.46,150.77,150.72,8.46]
[1718274385900,8.46,150.77,150.73,45.0]
[1718274387485,8.46,150.77,150.71,8.46]
[1718274387486,8.46,150.77,150.72,45.0]
[1718274391964,15.9098,150.78,150.72,45.0]
[1718274392171,8.46,150.76,150.72,45.0]
[1718274392372,8.46,150.77,150.72,45.0]
[1718274392867,8.46,150.76,150.72,45.0]
[1718274394900,8.46,150.76,150.71,45.0]
[1718274395191,15.9098,150.78,150.71,45.0]
[1718274395192,8.46,150.75,150.71,45.0]
[1718274396191,8.46,150.75,150.7,45.0]
[1718274396382,8.46,150.74,150.7,45.0]
[1718274397593,8.46,150.73,150.7,45.0]
[1718274397776,8.46,150.73,150.69,45.0]
[1718274398887,8.46,150.74,150.69,45.0]
[1718274399097,8.46,150.73,150.68,53.46]
[1718274399292,8.46,150.73,150.68,8.46]
[1718274399497,8.46,150.73,150.64,40.1685]
[1718274399700,8.46,150.69,150.64,8.46]
[1718274401300,8.46,150.69,150.65,45.0]
[1718274403906,8.46,150.7,150.65,45.0]
[1718274405297,8.46,150.7,150.65,53.46]
[1718274412005,8.46,150.71,150.65,53.46]
[1718274413499,8.46,150.7,150.65,53.46]
[1718274415592,8.46,150.7,150.65,45.0]
[1718274417496,8.46,150.7,150.65,53.46]
[1718274418519,8.46,150.7,150.65,45.0]
[1718274418819,8.46,150.7,150.65,53.46]
[1718274430534,16.6167,150.73,150.65,53.46]
[1718274430829,8.46,150.7,150.65,53.46]
[1718274431329,16.6167,150.73,150.65,53.46]
[1718274431530,8.46,150.7,150.65,53.46]
[1718274432016,8.46,150.7,150.65,45.0]
[1718274433114,8.46,150.69,150.65,45.0]
[1718274433311,8.46,150.69,150.64,45.0]
[1718274433512,8.46,150.68,150.64,45.0]
[1718274434828,8.46,150.68,150.63,45.0]
[1718274437435,8.46,150.67,150.63,45.0]
[1718274438839,8.46,150.65,150.63,45.0]
[1718274443040,8.46,150.66,150.63,45.0]
[1718274443336,8.46,150.66,150.61,8.58183655]